bitfinex/quotes_ETHUSD_20251120
["timestamp","ask_amount","ask_price","bid_price","bid_amount"]
[1763624541891,0.002,3040.0,3039.2,0.4753]
[1763624542094,3.28965634,3039.9,3039.3,0.38767478]
[1763624542468,0.002,3040.0,3039.3,4.15314524]
[1763624542858,0.002,3040.0,3039.3,4.15319336]
[1763624543068,0.002,3040.0,3039.3,0.86297478]
[1763624543268,0.0677,3039.9,3039.1,3.40142173]
[1763624543702,0.0677,3039.9,3039.2,0.4753]
[1763624544616,3.28969011,3039.8,3039.2,3.76560498]
[1763624545578,3.35930727,3039.9,3039.3,0.4753]
[1763624546809,3.35930727,3039.9,3039.3,3.76550037]
[1763624547008,0.002,3039.9,3039.3,3.76550037]
[1763624547232,0.002,3039.9,3039.4,0.4753]
[1763624547377,0.002,3039.9,3039.8,0.4972]
[1763624547889,0.002,3039.9,3039.8,0.9617]
[1763624549232,0.002,3039.9,3039.8,4.25139011]
[1763624550091,0.002,3039.9,3039.8,0.9617]
[1763624551944,0.18,3039.9,3039.4,0.8713919]
[1763624552102,0.18,3039.9,3039.5,0.111]
[1763624552103,0.0697,3039.9,3039.5,0.111]
[1763624552439,0.5083,3039.9,3039.5,0.111]
[1763624552597,0.1103,3039.6,3039.5,0.111]
[1763624552796,0.5083,3039.9,3039.5,0.111]
[1763624553237,3.35936178,3039.9,3039.5,0.111]
[1763624553797,6.64902356,3039.9,3039.5,0.111]
[1763624554101,0.1103,3039.6,3039.5,0.111]
[1763624554296,0.1103,3039.6,3039.0,0.8723919]
[1763624554520,0.1103,3039.6,3039.1,0.111]
[1763624554732,0.1103,3039.6,3039.0,0.4655]
[1763624555038,0.5456,3039.6,3039.1,0.111]
[1763624555194,0.1136,3039.2,3039.1,0.111]
[1763624555797,0.0136,3039.2,3039.0,0.001]
[1763624555999,0.0969,3039.1,3039.0,0.001]
[1763624556198,0.0969,3039.1,3039.0,0.112]
[1763624556520,0.753004,3039.1,3039.0,0.112]
[1763624556910,0.753004,3039.1,3039.0,0.001]
[1763624557233,4.04345182,3039.1,3039.0,0.112]
[1763624557698,4.04345182,3039.1,3039.0,0.001]
[1763624560717,8.935611,3039.1,3039.0,0.001]
[1763624560917,8.935611,3039.1,3037.3,4.16370939]
[1763624560918,1.31249664,3039.0,3037.3,4.16370939]
[1763624561134,0.405504,3038.5,3037.4,0.6039]
[1763624561301,3.98516654,3038.6,3037.4,0.6039]
[1763624561302,0.405504,3038.3,3037.4,0.6039]
[1763624561504,0.405504,3038.3,3037.5,0.90699264]
[1763624561835,0.744104,3038.3,3037.5,0.90699264]
[1763624562038,0.744104,3038.3,3037.5,1.38730975]
[1763624562363,0.744104,3038.3,3037.5,0.48031711]
[1763624562503,0.744104,3038.3,3037.5,1.38730975]
[1763624562816,0.744104,3038.3,3037.5,0.48031711]
[1763624563214,6.5828451,3038.2,3037.5,0.48031711]
[1763624564013,4.0354422,3038.3,3037.5,3.77246585]
[1763624564334,7.3267804,3038.3,3037.5,3.77348726]
[1763624564532,7.3267804,3038.3,3037.5,0.48131711]
[1763624565104,7.3267804,3038.3,3037.5,0.97421711]
[1763624566143,0.3386,3038.2,3037.5,0.97421711]
[1763624566358,0.3386,3038.2,3037.5,0.001]
[1763624566359,0.405504,3038.1,3037.5,0.001]
[1763624566550,0.405504,3038.1,3037.6,0.111]
[1763624566844,0.3386,3038.1,3037.6,0.111]
[1763624567066,0.1103,3037.7,3037.6,0.111]
[1763624567217,3.29207268,3037.6,3037.5,0.001]
[1763624567417,3.29317268,3037.6,3037.5,0.112]
[1763624567615,3.29317268,3037.6,3037.5,0.001]
[1763624567850,3.69867668,3037.6,3037.5,0.112]
[1763624569034,0.405504,3037.6,3037.5,0.112]
[1763624569236,3.69714323,3038.0,3037.5,0.581]
[1763624569447,6.98878986,3038.0,3037.5,0.581]
[1763624569624,6.98878986,3038.0,3037.5,0.112]
[1763624569823,0.405504,3037.8,3037.5,0.112]
[1763624570217,0.1103,3037.6,3037.5,0.112]
[1763624570554,0.515804,3037.6,3037.5,0.112]
[1763624570849,6.58328586,3038.0,3037.5,0.581]
[1763624571040,0.405504,3037.9,3037.5,1.0739]
[1763624571236,3.69714323,3038.0,3037.9,0.469]
[1763624571437,4.18166654,3038.9,3037.9,0.469]
[1763624571438,1.41276169,3038.9,3037.9,0.9619]
[1763624571746,0.405504,3038.7,3038.1,0.469]
[1763624571922,0.405504,3038.7,3038.0,0.111]
[1763624572130,0.1103,3038.1,3038.0,0.111]
[1763624572324,0.405504,3038.5,3038.0,0.111]
[1763624572648,0.744104,3038.5,3038.0,0.111]
[1763624573447,0.405504,3038.3,3038.0,0.111]
[1763624575782,3.29142255,3038.2,3038.0,0.111]
[1763624576751,0.1103,3038.1,3038.0,0.111]
[1763624576950,3.29136306,3038.3,3038.1,0.469]
[1763624577150,1.31249664,3038.7,3038.0,0.111]
[1763624577749,0.405504,3038.5,3038.0,0.111]
[1763624577949,0.405504,3038.5,3038.1,0.1805]
[1763624578386,0.405504,3038.5,3038.1,0.6734]
[1763624579648,0.405504,3038.3,3038.0,0.111]
[1763624580279,3.29113278,3038.5,3038.2,0.469]
[1763624580454,1.33109264,3038.9,3038.1,0.1805]
[1763624580455,1.31249664,3038.8,3038.3,0.469]
[1763624580654,1.31249664,3038.8,3038.4,0.469]
[1763624580957,1.31249664,3038.8,3038.5,0.111]
[1763624581285,0.3386,3038.7,3038.5,0.111]
[1763624581490,0.3386,3038.7,3037.5,3.29316389]
[1763624581491,0.405504,3038.5,3037.6,0.4929]
[1763624581659,0.405504,3038.5,3037.7,0.111]
[1763624581854,0.405504,3038.3,3037.5,0.001]
[1763624582056,1.31249664,3038.3,3037.5,0.001]
[1763624582260,0.405504,3038.1,3037.6,0.111]
[1763624582568,0.614804,3037.6,3037.5,0.001]
[1763624582988,0.952104,3037.6,3037.5,0.001]
[1763624584009,4.24417668,3037.6,3037.5,0.001]
[1763624584787,5.15116932,3037.6,3037.5,0.001]
[1763624586691,1.31249664,3037.5,3037.1,0.001]
[1763624586857,5.50696318,3037.2,3037.1,0.001]
[1763624587258,5.84426318,3037.2,3037.1,0.001]
[1763624587859,9.13676943,3037.2,3037.1,0.001]
[1763624589067,1.31249664,3037.1,3037.0,0.001]
[1763624589394,1.86039664,3037.1,3037.0,0.001]
[1763624590206,5.1530113,3037.1,3037.0,0.001]
[1763624590704,5.1530113,3037.1,3036.6,0.001]
[1763624590705,12.62001493,3037.1,3036.6,0.001]
[1763624590863,5.47921346,3036.7,3036.6,0.001]
[1763624591062,6.02581346,3036.7,3036.6,0.001]
[1763624591894,6.26873718,3036.7,3036.6,0.001]
[1763624592293,9.56178555,3036.7,3036.6,0.001]
[1763624593192,9.45078555,3036.7,3036.6,0.001]
[1763624593391,9.56178555,3036.7,3036.6,0.001]
[1763624593892,4.90754501,3036.7,3036.6,0.001]
[1763624594100,4.60554501,3036.7,3036.6,0.001]
[1763624595460,4.81614501,3036.7,3036.6,0.001]
[1763624597487,5.15214501,3036.7,3036.6,0.001]
[1763624597794,4.81614501,3036.7,3036.6,0.001]
[1763624600375,5.15214501,3036.7,3036.6,0.001]
[1763624600770,5.28405873,3036.7,3036.6,0.001]
[1763624602486,4.94805873,3036.7,3036.6,0.001]
[1763624602685,4.81614501,3036.7,3036.6,0.001]
[1763624604021,8.89016183,3036.7,3036.6,0.001]
[1763624604221,9.22616183,3036.7,3036.6,0.001]
[1763624604426,9.46909382,3036.7,3036.6,0.001]
[1763624605178,9.35809382,3036.7,3036.6,0.001]
[1763624605379,9.46909382,3036.7,3036.6,0.001]
[1763624609378,4.740877,3036.7,3036.6,0.001]
[1763624609573,4.54204101,3036.7,3036.6,0.001]
[1763624609781,4.94754501,3036.7,3036.6,0.001]
[1763624610003,5.07946047,3036.7,3036.6,0.001]
[1763624610798,4.74086047,3036.7,3036.6,0.001]
[1763624611108,4.85186047,3036.7,3036.6,0.001]
[1763624611910,4.20004101,3036.7,3036.6,0.4837]
[1763624612122,4.81484501,3036.7,3036.6,0.001]
[1763624612331,4.81484501,3036.7,3035.8,0.6695]
[1763624612332,1.65109664,3036.6,3035.2,0.001]
[1763624612626,1.65109664,3036.6,3035.2,0.4839]
[1763624612627,1.52179664,3036.0,3035.2,0.4839]
[1763624612828,4.81560428,3036.0,3035.2,0.001]
[1763624613014,5.15290428,3036.0,3035.2,0.001]
[1763624613211,6.16663757,3036.0,3035.2,0.001]
[1763624614225,5.28486326,3036.0,3035.2,0.001]
[1763624614730,13.821088,3036.0,3035.2,0.001]
[1763624615029,0.405504,3035.5,3035.2,0.001]
[1763624615208,1.29299941,3035.3,3035.2,0.001]
[1763624615402,1.50229941,3035.3,3035.2,0.001]
[1763624615608,1.83959941,3035.3,3035.2,0.001]
[1763624615808,1.08409302,3035.3,3035.2,0.001]
[1763624616115,1.08409302,3035.3,3034.6,0.001]
[1763624616116,2.26740501,3035.3,3034.6,0.001]
[1763624616322,5.77401346,3034.7,3034.6,0.001]
[1763624616504,6.11131346,3034.7,3034.6,0.001]
[1763624616703,9.06923209,3034.7,3034.6,0.001]
[1763624617028,9.40653209,3034.7,3034.6,0.001]
[1763624617332,9.06923209,3034.7,3034.6,0.001]
[1763624618396,8.68173209,3034.7,3034.6,0.001]
[1763624619204,9.22833209,3034.7,3034.6,0.001]
[1763624620831,8.89233209,3034.7,3034.6,0.001]
[1763624621208,8.68173209,3034.7,3034.6,0.001]
[1763624621403,4.60771527,3034.7,3034.6,0.4581]
[1763624621609,4.60771527,3034.7,3034.6,0.9377]
[1763624623829,0.58641503,3035.6,3034.6,0.9377]
[1763624624035,9.99505054,3035.5,3034.8,0.4571]
[1763624624210,0.90699264,3035.4,3034.8,0.4571]
[1763624624407,0.90699264,3035.4,3034.8,0.9367]
[1763624624611,0.405504,3035.3,3034.8,0.9367]
[1763624624814,0.405504,3035.3,3034.9,0.4796]
[1763624625028,4.60707713,3035.3,3035.2,0.4571]
[1763624627401,3.70008449,3035.3,3035.2,0.4571]
[1763624627914,4.60707713,3035.3,3035.2,0.4571]
[1763624630428,1.31249664,3035.2,3035.1,0.1871]
[1763624630812,1.31249664,3035.2,3035.1,0.6442]
[1763624631027,1.31249664,3035.2,3035.1,1.1238]
[1763624631220,4.60717244,3035.2,3035.1,1.1238]
[1763624631815,4.60717244,3035.2,3035.1,0.4571]
[1763624632022,11.19652404,3035.2,3034.8,0.4796]
[1763624632546,4.60717244,3035.2,3035.1,0.4571]
[1763624634550,4.60717244,3035.2,3035.1,0.9367]
[1763624634841,4.60717244,3035.2,3035.1,1.1238]
[1763624635941,4.60717244,3035.2,3035.1,0.6442]
[1763624636639,0.405504,3035.1,3035.0,0.00243798]
[1763624637010,0.405504,3035.1,3035.0,0.45953798]
[1763624638046,4.60728099,3035.1,3035.0,0.45953798]
[1763624638347,4.60728099,3035.1,3035.0,0.46053798]
[1763624639541,4.60728099,3035.1,3035.0,0.00343798]
[1763624639542,4.81658099,3035.1,3035.0,0.00343798]
[1763624639855,4.60728099,3035.1,3035.0,0.00343798]
[1763624640519,5.15388099,3035.1,3035.0,0.00343798]
[1763624641239,4.60728099,3035.1,3035.0,0.00343798]
[1763624641743,4.81788099,3035.1,3035.0,0.00343798]
[1763624641932,4.60728099,3035.1,3035.0,0.00343798]
[1763624642132,4.81658099,3035.1,3035.0,0.00343798]
[1763624642647,4.71828099,3035.1,3035.0,0.00343798]
[1763624642827,4.71828099,3035.1,3035.0,0.46053798]
[1763624644850,4.60728099,3035.1,3035.0,0.46053798]
[1763624645027,4.60728099,3035.1,3035.0,0.94013798]
[1763624645920,4.60728099,3035.1,3035.0,0.46053798]
[1763624646133,4.94588099,3035.1,3035.0,0.00343798]
[1763624646716,4.60728099,3035.1,3035.0,0.00343798]
[1763624647630,4.60728099,3035.1,3035.0,0.46053798]
[1763624648025,4.60728099,3035.1,3035.0,0.94013798]
[1763624649029,4.60728099,3035.1,3035.0,0.9377]
[1763624649957,4.60728099,3035.1,3035.0,0.9325]
[1763624651527,4.60728099,3035.1,3035.0,0.001]
[1763624651528,4.81658099,3035.1,3035.0,0.001]
[1763624652862,8.81843045,3035.1,3035.0,0.001]
[1763624654937,14.41480451,3035.1,3035.0,0.001]
[1763624655262,10.41295505,3035.1,3035.0,0.001]
[1763624656666,11.09186777,3035.1,3035.0,0.001]
[1763624657253,11.30116777,3035.1,3035.0,0.001]
[1763624657460,10.41295505,3035.1,3035.0,0.001]
[1763624657643,11.30116777,3035.1,3035.0,0.001]
[1763624658058,10.41295505,3035.1,3035.0,0.001]
[1763624658257,11.30116777,3035.1,3035.0,0.001]
[1763624658665,11.09186777,3035.1,3035.0,0.001]
[1763624662239,11.20286777,3035.1,3035.0,0.001]
[1763624662460,11.09186777,3035.1,3035.0,0.001]
[1763624662664,11.20286777,3035.1,3035.0,0.001]
[1763624663043,8.40468074,3035.1,3035.0,0.001]
[1763624663372,8.61398074,3035.1,3035.0,0.001]
[1763624663581,11.41216777,3035.1,3035.0,0.001]
[1763624664577,11.20286777,3035.1,3035.0,0.001]
[1763624665082,10.68636377,3035.1,3035.0,0.001]
[1763624665255,9.79815105,3035.1,3035.0,0.001]
[1763624665441,10.20365505,3035.1,3035.0,0.001]
[1763624666362,11.09359508,3035.1,3035.0,0.001]
[1763624666741,5.49722102,3035.1,3035.0,0.4643]
[1763624666975,11.09359508,3035.1,3035.0,0.9387]
[1763624667277,11.30289508,3035.1,3035.0,0.001]
[1763624668155,11.61201417,3035.1,3035.0,0.001]
[1763624668552,11.40271417,3035.1,3035.0,0.001]
[1763624669847,11.40271417,3035.1,3035.0,0.9525]
[1763624669848,6.80759447,3035.1,3035.0,0.9525]
[1763624670109,6.40209047,3035.1,3035.0,0.9525]
[1763624670580,7.71458711,3035.1,3035.0,0.9525]
[1763624670893,1.21611173,3035.1,3035.0,0.9525]
[1763624671182,0.30911909,3035.1,3035.0,0.9525]
[1763624671391,2.79818703,3035.1,3035.0,0.9525]
[1763624671605,3.10730612,3035.1,3035.0,0.9525]
[1763624671771,0.30911909,3035.1,3035.0,0.9525]
[1763624671962,6.40209047,3035.1,3035.0,0.9525]
[1763624672288,0.30911909,3035.1,3035.0,0.9525]
[1763624672970,0.002,3035.2,3035.0,1.37725918]
[1763624673298,0.002,3035.2,3035.1,1.135]
[1763624673592,0.31086371,3035.2,3035.1,1.135]
[1763624673789,0.002,3035.2,3035.1,1.135]
[1763624677895,0.002,3035.2,3035.1,4.42978435]
[1763624678198,0.002,3035.2,3035.1,1.57807844]
[1763624678980,0.00156202,3035.3,3035.2,0.9681]
[1763624679184,0.00156202,3035.3,3035.2,1.0791]
[1763624684822,0.00156202,3035.3,3035.2,8.1637758]
[1763624686283,0.00156202,3035.3,3035.2,4.7581]
[1763624686607,0.00156202,3035.3,3035.2,5.40766784]
[1763624689318,0.00156202,3035.3,3035.2,8.59134364]
[1763624689515,0.00156202,3035.3,3035.2,8.70234364]
[1763624690231,0.00156202,3035.3,3035.2,8.59134364]
[1763624690538,0.00156202,3035.3,3035.2,8.70234364]
[1763624691040,0.00156202,3035.3,3035.2,5.40766784]
[1763624691332,0.00156202,3035.3,3035.2,8.70234364]
[1763624693607,0.00156202,3035.3,3035.2,5.40766784]
[1763624694030,0.00156202,3035.3,3035.2,8.70234364]
[1763624695934,0.00156202,3035.3,3035.2,9.60933628]
[1763624696134,0.00156202,3035.3,3035.2,10.49047272]
[1763624696539,0.002,3035.6,3035.3,2.79818703]
[1763624696837,0.002,3035.6,3035.5,0.4797]
[1763624697239,0.002,3035.6,3035.5,4.26245018]
[1763624698350,0.002,3035.6,3035.5,0.9681]
[1763624698521,0.002,3035.6,3035.5,1.0791]
[1763624699748,0.002,3035.6,3035.5,4.7581]
[1763624699951,0.002,3035.6,3035.5,4.8691]
[1763624700339,0.002,3035.6,3035.5,8.60593407]
[1763624700766,0.002,3035.6,3035.5,5.31158389]
[1763624701132,0.002,3035.6,3035.5,8.60593407]
[1763624701378,0.002,3035.6,3035.5,7.6141211]
[1763624701534,0.002,3035.6,3035.5,9.51292671]
[1763624701749,0.002,3035.6,3035.5,10.80924567]
[1763624702561,0.002,3035.6,3035.5,10.67737153]
[1763624702737,0.002,3035.6,3035.5,9.51292671]
[1763624704667,0.002,3035.6,3035.5,10.67737153]
[1763624704962,0.002,3035.6,3035.5,9.51292671]
[1763624705605,0.002,3035.9,3035.6,0.9681]
[1763624705807,0.002,3035.9,3035.8,6.07607406]
[1763624706088,0.002,3035.9,3035.8,7.24752911]
[1763624706384,0.002,3035.9,3035.8,9.99034936]
[1763624707268,0.002,3035.9,3035.8,11.16054159]
[1763624707889,0.002,3036.3,3035.9,1.87509264]
[1763624708074,0.002,3036.3,3036.2,3.45838703]
[1763624708393,0.002,3036.3,3036.2,6.7519777]
[1763624708554,0.002,3036.3,3036.2,7.2303777]
[1763624708758,0.002,3036.3,3036.2,8.21916648]
[1763624708957,0.002,3036.3,3036.2,8.33016648]
[1763624709189,0.002,3036.3,3036.2,11.3866745]
[1763624709488,0.002,3036.3,3036.2,10.51013376]
[1763624710162,0.002,3036.3,3036.2,11.3862751]
[1763624710390,0.002,3036.3,3036.2,10.51013376]
[1763624710688,0.002,3036.3,3036.2,14.21531343]
[1763624711090,0.002,3036.3,3036.2,15.3832629]
[1763624712176,0.002,3036.3,3036.2,11.4171264]
[1763624712902,0.002,3036.3,3036.2,11.75985481]
[1763624713091,0.002,3036.3,3036.2,12.92780428]
[1763624713292,0.002,3036.3,3036.2,11.75985481]
[1763624714402,0.002,3036.3,3036.2,36.76702581]
[1763624714605,0.002,3036.3,3036.2,27.72448128]
[1763624715604,0.002,3037.6,3036.6,3.788]
[1763624715796,0.002,3037.6,3036.9,3.14091544]
[1763624716196,0.002,3037.6,3036.9,3.61931544]
[1763624716510,0.002,3037.6,3037.0,3.29272308]
[1763624716705,0.3406,3037.6,3037.1,0.111]
[1763624717006,0.002,3037.6,3037.2,3.14091544]
[1763624717210,0.002,3037.6,3037.3,0.32519154]
[1763624717394,0.002,3037.6,3037.3,4.11319154]
[1763624717597,0.002,3037.6,3037.3,4.59159154]
[1763624719406,0.002,3037.6,3037.3,7.40555623]
[1763624719607,0.2093,3037.4,3036.7,0.3788]
[1763624719783,0.3373,3037.5,3036.7,3.67180717]
[1763624719989,0.3386,3037.4,3036.8,0.111]
[1763624720390,0.3386,3037.4,3036.9,0.111]
[1763624721511,3.63093308,3037.4,3036.9,0.111]
[1763624722786,0.3386,3037.4,3036.9,3.40381878]
[1763624723117,3.63271342,3037.6,3036.9,7.17505028]
[1763624723312,3.63271342,3037.6,3036.9,3.88221878]
[1763624723481,3.63271342,3037.6,3037.5,0.4932]
[1763624723482,0.002,3037.6,3037.5,0.4932]
[1763624723688,0.002,3037.6,3037.5,0.6042]
[1763624724006,0.002,3037.6,3037.5,0.111]
[1763624724426,0.2113,3037.6,3037.1,9.72614476]
[1763624724629,0.2072,3037.2,3036.9,4.04819299]
[1763624724914,0.0054,3037.6,3037.0,0.111]
[1763624724915,0.3386,3037.5,3037.0,0.111]
[1763624725288,0.2093,3037.1,3036.7,7.45978159]
[1763624725489,0.2093,3037.1,3036.8,3.40389186]
[1763624726018,0.3386,3037.5,3037.0,0.4932]
[1763624726182,0.002,3037.6,3037.0,3.63411544]
[1763624726387,0.002,3037.6,3037.1,0.41125154]
[1763624726588,0.002,3037.6,3037.2,0.111]
[1763624727011,0.002,3037.6,3037.2,0.5894]
[1763624727216,0.002,3037.6,3037.5,0.4932]
[1763624727590,0.002,3037.6,3037.2,3.8818638]
[1763624727791,0.002,3037.6,3037.2,4.95453419]
[1763624728111,0.002,3037.6,3037.3,0.111]
[1763624728285,0.2093,3037.4,3037.3,0.111]
[1763624730523,0.002,3037.6,3037.3,0.111]
[1763624731451,0.002,3037.6,3037.5,3.63261544]
[1763624731718,0.002,3037.6,3037.5,0.4917]
[1763624732927,0.002,3037.6,3037.5,0.111]
[1763624733112,0.2113,3037.6,3037.4,3.788]
[1763624733311,0.3373,3037.5,3037.4,3.788]
[1763624733505,0.3373,3037.5,3037.4,3.899]
[1763624736922,0.002,3037.6,3037.4,3.899]
[1763624737531,0.336,3037.5,3037.4,3.899]
[1763624737738,0.002,3037.6,3037.4,3.899]
[1763624738323,0.002,3037.6,3037.4,7.19126228]
[1763624738524,0.002,3037.6,3037.5,4.12471544]
[1763624739741,0.002,3037.6,3037.5,0.4924]
[1763624739964,0.2113,3037.6,3037.5,0.111]
[1763624740561,0.2113,3037.6,3037.5,3.899]
[1763624743270,0.2113,3037.6,3037.5,3.788]
[1763624743271,3.63267268,3037.6,3037.5,3.788]
[1763624743436,3.63267268,3037.6,3037.5,3.899]
[1763624743437,3.84197268,3037.6,3037.5,3.899]
[1763624743766,4.1506069,3037.6,3037.5,3.899]
[1763624744364,3.9413069,3037.6,3037.5,3.899]
[1763624744542,0.64923422,3037.6,3037.5,3.899]
[1763624744864,3.63267268,3037.6,3037.5,3.899]
[1763624745070,3.9413069,3037.6,3037.5,3.899]
[1763624746130,0.64923422,3037.6,3037.5,3.899]
[1763624746449,0.64923422,3037.6,3037.5,0.111]
[1763624747165,0.64919723,3037.6,3037.5,0.111]
[1763624747365,0.002,3037.6,3037.5,0.61]
[1763624747569,0.002,3037.6,3037.5,5.24623734]
[1763624747766,0.002,3037.6,3037.5,8.5384184]
[1763624748472,0.002,3037.6,3037.5,11.67933384]
[1763624748833,0.002,3037.6,3037.5,8.4274184]
[1763624749032,0.002,3037.6,3037.5,8.5384184]
[1763624749564,0.002,3037.6,3037.5,5.24623734]
[1763624749753,0.002,3037.6,3037.5,4.78823734]
[1763624750433,0.2113,3037.6,3037.5,3.788]
[1763624751134,0.5486,3037.6,3037.5,3.788]
[1763624751334,0.5486,3037.6,3037.5,3.899]
[1763624751534,0.85714451,3037.6,3037.5,3.899]
[1763624752364,0.51989567,3037.6,3037.5,3.899]
[1763624752667,3.50337268,3037.6,3037.5,0.111]
[1763624752967,3.81196835,3037.6,3037.5,0.111]
[1763624754086,0.2113,3037.6,3037.5,0.111]
[1763624754793,0.002,3037.6,3037.5,1.068]
[1763624754951,0.002,3037.6,3037.5,4.36018106]
[1763624755156,0.002,3037.6,3037.5,4.79619917]
[1763624755356,0.002,3037.6,3037.5,1.50401811]
[1763624755558,0.002,3037.6,3037.5,4.36018106]
[1763624756890,0.002,3037.6,3037.5,7.5010965]
[1763624757189,0.002,3037.6,3037.5,8.37584632]
[1763624757392,0.002,3037.6,3037.5,5.08366526]
[1763624757558,0.002,3037.6,3037.5,8.37584632]
[1763624757760,0.002,3037.6,3037.5,9.65945463]
[1763624758470,0.002,3037.6,3037.5,13.44745463]
[1763624759995,0.002,3037.6,3037.5,12.57270481]
[1763624760685,0.002,3037.6,3037.5,13.47969745]
[1763624761001,0.002,3037.6,3037.5,15.2313539]
[1763624761196,0.002,3037.6,3037.5,13.47969745]
[1763624762506,0.002,3037.6,3037.5,15.2313539]
[1763624762693,0.002,3037.6,3037.5,15.23756553]
[1763624763592,0.002,3037.6,3037.5,13.47969745]
[1763624764707,0.002,3037.6,3037.5,13.36869745]
[1763624764904,0.002,3037.6,3037.5,11.39912521]
[1763624765093,0.002,3037.6,3037.5,14.65104065]
[1763624765503,0.002,3037.6,3037.5,13.47969745]
[1763624765819,0.002,3037.6,3037.5,15.23756553]
[1763624766318,0.002,3037.6,3037.5,13.47969745]
[1763624766822,0.002,3037.6,3037.5,15.23756553]
[1763624767118,0.002,3037.6,3037.5,9.76978201]
[1763624767305,0.002,3037.6,3037.5,14.53955436]
[1763624767507,0.002,3037.6,3037.5,13.47969745]
[1763624769225,0.002,3037.6,3037.5,12.91069745]
[1763624769427,0.002,3037.6,3037.5,13.8998684]
[1763624769996,0.002,3037.6,3037.5,13.02169745]
[1763624770201,0.002,3037.6,3037.5,13.47509745]
[1763624770926,0.2113,3037.6,3037.5,5.9497671]
[1763624771092,0.2113,3037.6,3037.5,3.899]
[1763624771290,0.2113,3037.6,3037.5,3.788]
[1763624771495,0.2113,3037.6,3037.5,3.899]
[1763624772098,0.002,3037.6,3037.5,3.899]
[1763624772398,0.002,3037.6,3037.5,7.19118106]
[1763624772723,0.002,3037.6,3037.5,12.61133482]
[1763624772892,0.002,3037.6,3037.5,12.26110703]
[1763624774025,0.002,3037.6,3037.5,8.96892597]
[1763624774239,0.002,3037.6,3037.5,12.26110703]
[1763624774843,0.3895,3037.6,3037.5,8.44261938]
[1763624775024,0.1802,3037.6,3037.3,0.87849862]
[1763624775199,0.1802,3037.6,3036.8,0.111]
[1763624775200,1.31249664,3037.3,3036.8,0.111]
[1763624775394,1.21500593,3037.2,3036.8,0.111]
[1763624775600,0.90699264,3037.2,3036.8,0.111]
[1763624776558,0.30666305,3037.2,3037.1,6.0447753]
[1763624776751,0.002,3037.6,3037.4,0.405504]
[1763624776964,0.002,3037.6,3037.5,2.15038147]
[1763624777258,0.002,3037.6,3037.5,6.0447753]
[1763624777453,0.002,3038.3,3037.5,6.0447753]
[1763624777454,0.002,3038.3,3037.6,1.31249664]
[1763624777658,0.002,3038.3,3037.9,4.16108029]
[1763624777968,0.002,3038.3,3037.9,5.14277764]
[1763624778270,0.002,3038.3,3037.9,5.59617764]
[1763624778560,0.002,3038.3,3037.9,6.7664132]
[1763624778765,0.002,3038.3,3037.9,5.59617764]
[1763624778967,0.002,3038.3,3037.9,6.79322709]
[1763624779317,0.002,3038.3,3037.9,11.25486789]
[1763624779528,0.002,3038.3,3037.9,10.08497467]
[1763624779723,0.002,3038.3,3037.9,5.64383757]
[1763624779945,0.002,3038.3,3037.9,5.18043757]
[1763624780145,0.002,3038.3,3037.9,5.06943757]
[1763624780384,0.002,3038.3,3037.9,1.88868999]
[1763624780552,0.002,3038.3,3037.9,1.01799264]
[1763624781221,0.002,3038.3,3037.9,4.30974022]
[1763624781548,0.002,3038.3,3037.9,5.22654022]
[1763624782346,0.002,3038.3,3037.9,1.93479264]
[1763624782560,0.002,3038.3,3037.9,5.25945769]
[1763624782766,0.002,3038.3,3037.9,6.51335981]
[1763624783417,0.002,3038.3,3037.9,6.48044234]
[1763624785626,0.002,3038.3,3037.9,7.65033556]
[1763624786349,0.002,3038.3,3037.9,7.7821024]
[1763624787349,0.002,3038.3,3037.9,9.89720918]
[1763624787552,0.002,3038.3,3037.9,12.23984875]
[1763624788127,0.002,3038.3,3037.9,10.48464318]
[1763624789758,0.002,3038.3,3037.9,11.22054718]
[1763624789927,0.002,3038.3,3037.9,18.79531475]
[1763624790330,0.002,3038.3,3037.9,17.04010918]
[1763624790525,3.28944409,3040.1,3038.4,7.087659]
[1763624790731,0.4565,3039.9,3039.0,0.90699264]
[1763624791075,0.4565,3039.9,3039.1,0.111]
[1763624791274,0.4565,3039.9,3039.2,0.111]
[1763624791643,0.4565,3039.9,3039.4,0.90699264]
[1763624792241,0.1441,3040.0,3039.4,0.90699264]
[1763624792443,0.1441,3040.0,3039.4,1.66683816]
[1763624793768,0.1441,3040.0,3039.5,3.2900148]
[1763624793769,0.6006,3040.0,3039.5,3.2900148]
[1763624793979,0.002,3039.9,3039.6,0.111]
[1763624794137,0.4585,3039.9,3039.6,0.111]
[1763624794338,0.0924,3039.7,3039.6,0.111]
[1763624795571,0.0924,3039.7,3039.4,0.90699264]
[1763624795775,0.0045,3039.5,3039.4,0.90699264]
[1763624796077,0.0045,3039.5,3039.4,0.99289512]
[1763624797474,0.0045,3039.5,3038.7,4.27885702]
[1763624797475,0.461,3039.5,3038.7,0.98800398]
[1763624797677,0.088,3039.4,3038.9,3.29066438]
[1763624798172,0.5445,3039.4,3039.0,0.90699264]
[1763624798589,0.5445,3039.4,3038.9,0.90699264]
[1763624798590,0.0924,3039.1,3038.9,0.90699264]
[1763624798737,0.0009,3039.0,3038.9,0.90699264]
[1763624798943,0.0009,3039.0,3038.9,1.01799264]
[1763624799216,0.4941,3039.0,3038.9,0.111]
[1763624799517,0.4941,3039.0,3038.3,6.5826199]
[1763624799718,0.0675,3038.9,3038.6,0.90699264]